fUST/lending_fUST_20241025
["ID","MTS","AMOUNT","RATE_DAILY","PERIOD"]
[340794485,1729841739570,302.04,0.00016,5]
[340794568,1729842165009,-160.0006774,0.00011505,2]
[340794569,1729842165033,-1304.0712119,0.00011681,2]
[340794570,1729842165058,-3000.0,0.00011892,2]
[340794571,1729842165082,-300.0,0.00012054,2]
[340794572,1729842165106,-300.0,0.00012054,2]
[340794573,1729842165131,-21326.6134386,0.00012055,2]
[340794574,1729842165157,-5203.82775026,0.000129,2]
[340794575,1729842165187,-49920.58444774,0.00013,2]
[340794576,1729842165211,-202.0,0.00013,2]
[340794577,1729842165235,-153.0,0.00013,2]
[340794578,1729842165264,-153.0,0.00013,2]
[340794579,1729842165289,-425.8942701,0.00013,2]
[340794580,1729842165314,-233.553804,0.000131,2]
[340794581,1729842165344,-211.0,0.0001312,2]
[340794582,1729842165369,-153.0,0.00013151,2]
[340794583,1729842165395,-153.0,0.00013151,2]
[340794584,1729842165421,-150.112233,0.000132,2]
[340794585,1729842165446,-150.112233,0.000132,2]
[340794586,1729842165472,-447.0298175,0.000132,2]
[340794592,1729842203867,-150.112233,0.000133,2]
[340794593,1729842203892,-150.112233,0.000133,2]
[340794594,1729842203919,-150.112233,0.000133,2]
[340794595,1729842203944,-150.112233,0.000134,2]
[340794596,1729842203971,-150.112233,0.000134,2]
[340794597,1729842203995,-153.0,0.00013425,2]
[340794598,1729842204020,-150.112233,0.000135,2]
[340794599,1729842204045,-150.112233,0.000135,2]
[340794600,1729842204072,-300.0,0.00013511,2]
[340794601,1729842204097,-300.0,0.00013511,2]
[340794602,1729842204122,-155.694,0.00013512,2]
[340794603,1729842204146,-528.0,0.00013512,2]
[340794604,1729842204172,-1151.0,0.00013512,2]
[340794605,1729842204413,-2397.0,0.00013512,2]
[340794606,1729842204441,-215.97860714,0.000136,2]
[340794607,1729842204468,-150.112233,0.000136,2]
[340794608,1729842204494,-150.112233,0.000136,2]
[340794609,1729842204518,-150.112233,0.000136,2]
[340794610,1729842204543,-173.167,0.0001365,2]
[340794611,1729842204567,-151.028,0.0001365,2]
[340794612,1729842204591,-500.0,0.00013673,2]
[340794613,1729842204616,-500.0,0.00013673,2]
[340794614,1729842204641,-500.0,0.00013673,2]
[340794615,1729842204665,-502.24361383,0.00013673,2]
[340794616,1729842204690,-500.95282035,0.00013673,2]
[340794617,1729842204715,-500.0,0.00013673,2]
[340794618,1729842204739,-500.58376982,0.00013673,2]
[340794619,1729842204763,-501.59210634,0.00013673,2]
[340794620,1729842204787,-359.53411567,0.00013673,2]
[340794621,1729842204810,-502.57141215,0.00013673,2]
[340794622,1729842204834,-503.02519978,0.00013673,2]
[340794623,1729842204858,-440.72019968,0.00013673,2]
[340794624,1729842204882,-500.0,0.00013673,2]
[340794625,1729842204905,-500.6553993,0.00013673,2]
[340794626,1729842204930,-500.0,0.00013673,2]
[340794627,1729842204955,-151.0,0.00013678,2]
[340794628,1729842204979,-151.0,0.00013688,2]
[340794629,1729842205003,-151.0,0.00013688,2]
[340794630,1729842205027,-151.0,0.00013688,2]
[340794631,1729842205051,-151.0,0.00013688,2]
[340794632,1729842205077,-264.2322,0.00013688,2]
[340794633,1729842205102,-151.0,0.00013688,2]
[340794634,1729842205126,-151.0,0.00013688,2]
[340794635,1729842205151,-151.0,0.00013688,2]
[340794636,1729842205175,-151.0,0.00013688,2]
[340794637,1729842205199,-92.09934244,0.00013688,2]
[340794667,1729842446279,313.71614457,0.0001265,5]
[340794719,1729842638795,-300.0,0.0001269,2]
[340794722,1729842638808,-300.0,0.0001269,2]
[340794724,1729842638819,-951.18867335,0.00012691,2]
[340794880,1729842640767,-384.26246956,0.00012691,2]
[340794887,1729842640828,-23264.54885709,0.00012691,2]
[340794889,1729842640840,-528.0,0.00013581,2]
[340794891,1729842640850,-2397.0,0.00013581,2]
[340794894,1729842640867,-1151.0,0.00013581,2]
[340794896,1729842640881,-500.0,0.00013673,2]
[340794898,1729842640895,-421.284229,0.00013673,2]
[340794901,1729842640910,-19835.9577288,0.00013678,2]
[340794903,1729842640924,-3603.61215256,0.00013678,2]
[340794906,1729842640938,-151.0,0.00013688,2]
[340794908,1729842640949,-204.205,0.00013688,2]
[340794910,1729842640960,-14909.39203262,0.00013688,2]
[340795166,1729842643696,-8487.99243636,0.00013688,2]
[340795168,1729842643713,-6868.2,0.00013688,2]
[340795171,1729842643728,-4118.87080956,0.00013688,2]
[340795282,1729842646706,-20164.42847566,0.00013688,2]
[340795283,1729842646717,-9909.93341954,0.00013688,2]
[340795284,1729842646729,-22.25887656,0.00013698,2]
[340795285,1729842646750,-500.0,0.00013698,2]
[340795286,1729842646762,-500.0,0.00013698,2]
[340795287,1729842646773,-500.0,0.00013698,2]
[340795288,1729842646784,-500.0,0.00013698,2]
[340795289,1729842646795,-500.0,0.00013698,2]
[340795290,1729842646806,-500.0,0.00013698,2]
[340795291,1729842646818,-500.0,0.00013698,2]
[340795292,1729842646830,-500.0,0.00013698,2]
[340795293,1729842646842,-500.0,0.00013698,2]
[340795294,1729842646853,-500.0,0.00013698,2]
[340795295,1729842646864,-500.0,0.00013698,2]
[340795296,1729842646877,-226.71187728,0.00013698,2]
[340795297,1729842646889,-500.0,0.00013698,2]
[340795298,1729842646901,-500.0,0.00013698,2]
[340795299,1729842646914,-500.0,0.00013698,2]
[340795300,1729842646926,-500.0,0.00013698,2]
[340795301,1729842646938,-500.0,0.00013698,2]
[340795302,1729842646949,-500.0,0.00013698,2]
[340795303,1729842646962,-500.0,0.00013698,2]
[340795305,1729842646973,-500.0,0.00013698,2]
[340795307,1729842646984,-500.0,0.00013698,2]
[340795309,1729842646996,-500.0,0.00013698,2]
[340795310,1729842647008,-300.0,0.00013698,2]
[340795311,1729842647022,-500.0,0.00013698,2]
[340795312,1729842647034,-500.0,0.00013698,2]
[340795313,1729842647047,-500.0,0.00013698,2]
[340795314,1729842647060,-228.15819495,0.00013698,2]
[340795315,1729842647071,-500.0,0.00013698,2]
[340795316,1729842647083,-500.0,0.00013698,2]
[340795317,1729842647094,-500.0,0.00013698,2]
[340795318,1729842647107,-500.0,0.00013698,2]
[340795319,1729842647119,-228.15819495,0.00013698,2]
[340795320,1729842647132,-500.0,0.00013698,2]
[340795321,1729842647144,-228.15819495,0.00013698,2]
[340795322,1729842647159,-500.0,0.00013698,2]
[340795323,1729842647172,-349.99999999,0.00013698,2]
[340795324,1729842647183,-500.0,0.00013698,2]
[340795325,1729842647195,-500.0,0.00013698,2]
[340795326,1729842647207,-500.0,0.00013698,2]
[340795327,1729842647220,-500.0,0.00013698,2]
[340795328,1729842647231,-500.0,0.00013698,2]
[340795329,1729842647243,-500.0,0.00013698,2]
[340795330,1729842647256,-500.0,0.00013698,2]
[340795331,1729842647267,-500.0,0.00013698,2]
[340795332,1729842647278,-500.0,0.00013698,2]
[340795333,1729842647288,-500.0,0.00013698,2]
[340795334,1729842647299,-500.0,0.00013698,2]
[340795335,1729842647311,-500.0,0.00013698,2]
[340795336,1729842647321,-500.0,0.00013698,2]
[340795337,1729842647333,-500.0,0.00013698,2]
[340795338,1729842647344,-500.0,0.00013698,2]
[340795339,1729842647356,-500.0,0.00013698,2]
[340795340,1729842647367,-500.0,0.00013698,2]
[340795341,1729842647379,-500.0,0.00013698,2]
[340795342,1729842647391,-500.0,0.00013698,2]
[340795343,1729842647403,-500.0,0.00013698,2]
[340795344,1729842647415,-500.0,0.00013698,2]
[340795345,1729842647428,-500.0,0.00013698,2]
[340795346,1729842647439,-600.0,0.00013698,2]
[340795347,1729842647452,-500.0,0.00013698,2]
[340795348,1729842647463,-216.71187727,0.00013698,2]
[340795349,1729842647473,-500.0,0.00013698,2]
[340795350,1729842647482,-500.0,0.00013698,2]
[340795351,1729842647492,-500.0,0.00013698,2]
[340795352,1729842647501,-500.0,0.00013698,2]
[340795353,1729842647513,-500.0,0.00013698,2]
[340795354,1729842647523,-500.0,0.00013698,2]
[340795355,1729842647533,-500.0,0.00013698,2]
[340795356,1729842647542,-500.0,0.00013698,2]
[340795357,1729842647552,-500.0,0.00013698,2]
[340795358,1729842647563,-500.0,0.00013698,2]
[340795359,1729842647845,-500.0,0.00013698,2]
[340795360,1729842647863,-464.64520313,0.00013698,2]
[340795361,1729842647874,-193.44270171,0.00013698,2]
[340795362,1729842647885,-490.08403502,0.00013698,2]
[340795363,1729842647894,-500.0,0.00013698,2]
[340795364,1729842647904,-500.0,0.00013698,2]
[340795365,1729842647913,-500.0,0.00013698,2]
[340795366,1729842647923,-500.0,0.00013698,2]
[340795367,1729842647932,-500.0,0.00013698,2]
[340795368,1729842647942,-500.0,0.00013698,2]
[340795369,1729842647952,-500.0,0.00013698,2]
[340795370,1729842647962,-500.0,0.00013698,2]
[340795371,1729842647972,-500.0,0.00013698,2]
[340795372,1729842647982,-500.0,0.00013698,2]
[340795373,1729842647992,-500.0,0.00013698,2]
[340795374,1729842648002,-506.75686256,0.00013698,2]
[340795375,1729842648011,-500.0,0.00013698,2]
[340795376,1729842648023,-500.0,0.00013698,2]
[340795377,1729842648034,-500.0,0.00013698,2]
[340795378,1729842648044,-500.0,0.00013698,2]
[340795379,1729842648053,-500.0,0.00013698,2]
[340795380,1729842648063,-500.0,0.00013698,2]
[340795381,1729842648073,-500.0,0.00013698,2]
[340795382,1729842648083,-286.22344698,0.00013698,2]
[340795383,1729842648092,-266.46512242,0.00013698,2]
[340795384,1729842648101,-500.0,0.00013698,2]
[340795385,1729842648110,-500.0,0.00013698,2]
[340795386,1729842648119,-500.0,0.00013698,2]
[340795387,1729842648130,-500.0,0.00013698,2]
[340795388,1729842648139,-500.0,0.00013698,2]
[340795389,1729842648149,-500.0,0.00013698,2]
[340795390,1729842648159,-500.0,0.00013698,2]
[340795391,1729842648168,-500.0,0.00013698,2]
[340795392,1729842648177,-500.0,0.00013698,2]
[340795393,1729842648187,-500.0,0.00013698,2]
[340795394,1729842648197,-500.0,0.00013698,2]
[340795395,1729842648207,-500.0,0.00013698,2]
[340795396,1729842648217,-500.0,0.00013698,2]
[340795397,1729842648226,-500.0,0.00013698,2]
[340795398,1729842648235,-500.0,0.00013698,2]
[340795399,1729842648244,-344.32201443,0.00013698,2]
[340795400,1729842648253,-256.23075894,0.00013698,2]
[340795401,1729842648264,-500.0,0.00013698,2]
[340795402,1729842648273,-151.0,0.00013698,2]
[340795403,1729842648282,-151.0,0.00013698,2]
[340795404,1729842648291,-151.880154,0.00013698,2]
[340795405,1729842648300,-151.0,0.00013698,2]
[340795406,1729842648311,-500.0,0.00013698,2]
[340795407,1729842648320,-481.05528485,0.00013698,2]
[340795408,1729842648330,-500.0,0.00013698,2]
[340795409,1729842648339,-598.61,0.00013698,2]
[340795410,1729842648348,-500.0,0.00013698,2]
[340795411,1729842648358,-671.2,0.00013698,2]
[340795412,1729842648368,-211.15810126,0.00013698,2]
[340795413,1729842648378,-500.0,0.00013698,2]
[340795414,1729842648387,-1311.36,0.00013698,2]
[340795415,1729842648396,-500.0,0.00013698,2]
[340795416,1729842648406,-202.26622897,0.00013698,2]
[340795417,1729842648415,-500.0,0.00013698,2]
[340795418,1729842648424,-584.92,0.00013698,2]
[340795419,1729842648434,-887.69,0.00013698,2]
[340795420,1729842648443,-730.16,0.00013698,2]
[340795421,1729842648456,-1202.14,0.00013698,2]
[340795422,1729842648466,-500.0,0.00013698,2]
[340795423,1729842648475,-1196.82,0.00013698,2]
[340795424,1729842648484,-832.14,0.00013698,2]
[340795425,1729842648495,-500.0,0.00013698,2]
[340795426,1729842648504,-543.1,0.00013698,2]
[340795427,1729842648514,-500.0,0.00013698,2]
[340795428,1729842648523,-942.17,0.00013698,2]
[340795429,1729842648534,-541.43426891,0.00013698,2]
[340795430,1729842648545,-515.58,0.00013698,2]
[340795431,1729842648556,-500.0,0.00013698,2]
[340795432,1729842648567,-830.85,0.00013698,2]
[340795433,1729842648578,-723.78,0.00013698,2]
[340795434,1729842648587,-500.0,0.00013698,2]
[340795435,1729842648596,-500.0,0.00013698,2]
[340795436,1729842648606,-817.21,0.00013698,2]
[340795437,1729842648617,-1087.13,0.00013698,2]
[340795438,1729842648628,-500.0,0.00013698,2]
[340795439,1729842648638,-178.23660235,0.00013698,2]
[340795440,1729842648648,-151.0,0.00013698,2]
[340795441,1729842648658,-151.0,0.00013698,2]
[340795442,1729842648667,-500.0,0.00013698,2]
[340795443,1729842648677,-151.0,0.00013698,2]
[340795444,1729842648687,-151.0,0.00013698,2]
[340795445,1729842648696,-274.89565779,0.00013698,2]
[340795446,1729842648706,-506.68606305,0.00013698,2]
[340795447,1729842648716,-528.92,0.00013698,2]
[340795448,1729842648725,-1363.03,0.00013698,2]
[340795449,1729842648735,-151.0,0.00013698,2]
[340795450,1729842648745,-1570.24,0.00013698,2]
[340795451,1729842648756,-500.0,0.00013698,2]
[340795452,1729842648767,-685.37,0.00013698,2]
[340795453,1729842648777,-901.39,0.00013698,2]
[340795454,1729842648787,-1124.66,0.00013698,2]
[340795455,1729842648796,-742.0,0.00013698,2]
[340795456,1729842648806,-500.0,0.00013698,2]
[340795457,1729842648816,-242.92695096,0.00013698,2]
[340795460,1729842701092,406.07,0.00010959,2]
[340795461,1729842728455,154.081,0.0001925,60]
[340795462,1729842732235,855.37,0.00010959,2]
[340795463,1729842753590,195.83,0.00010959,2]
[340795464,1729842764127,163.19,0.00010959,2]
[340795465,1729842774620,815.98,0.00010959,2]
[340795474,1729843618121,362.59,0.00010959,2]
[340795475,1729843638931,302.15,0.00010959,2]
[340795476,1729843649534,251.8,0.00010959,2]
[340795477,1729843660015,209.83,0.00010959,2]
[340795478,1729843670528,209.83,0.00010959,2]
[340795479,1729843681114,839.34,0.00010959,2]
[340795480,1729843692004,500.0,0.00022,60]
[340795481,1729843703499,500.0,0.00022,60]
[340795482,1729843716588,500.0,0.00022,60]
[340795486,1729843760783,500.0,0.00022,60]
[340795487,1729843786710,500.0,0.00022,60]
[340795578,1729843837951,-902.70715558,0.00011871,2]
[340795595,1729843838108,-2097.29284442,0.00011871,2]
[340795597,1729843838118,-300.0,0.00011941,2]
[340795599,1729843838129,-300.0,0.00011941,2]
[340795601,1729843838138,-13129.63145081,0.00011942,2]
[340795603,1729843838151,-728.41208814,0.00011942,2]
[340795606,1729843838163,-4249.23196006,0.00011942,2]
[340795731,1729843839913,-3335.05235659,0.00011942,2]
[340795733,1729843839923,-160.724408,0.00012264,2]
[340795736,1729843839933,-160.724408,0.000123,2]
[340795738,1729843839945,-160.724408,0.00012336,2]
[340795740,1729843839958,-160.724408,0.00012371,2]
[340795742,1729843839967,-160.724408,0.00012407,2]
[340795744,1729843839977,-160.724408,0.00012442,2]
[340795746,1729843839987,-160.724408,0.00012478,2]
[340795748,1729843839996,-160.724408,0.00012513,2]
[340795750,1729843840006,-160.724408,0.00012549,2]
[340795752,1729843840017,-160.724408,0.00012584,2]
[340795754,1729843840027,-160.724408,0.0001262,2]
[340795755,1729843840036,-160.724408,0.00012655,2]
[340795757,1729843840044,-160.724408,0.00012691,2]
[340795760,1729843840055,-160.724408,0.00012726,2]
[340795762,1729843840065,-160.724408,0.00012762,2]
[340795764,1729843840074,-160.724408,0.00012797,2]
[340795765,1729843840084,-160.724408,0.00012833,2]
[340795767,1729843840093,-160.724408,0.00012868,2]
[340795769,1729843840102,-160.724408,0.00012904,2]
[340795771,1729843840113,-153.0,0.00012978,2]
[340795772,1729843840122,-153.0,0.00012978,2]
[340795773,1729843840142,-302.5509068,0.00012978,2]
[340795774,1729843840151,-153.0,0.00012978,2]
[340795775,1729843840161,-153.0,0.00012978,2]
[340795776,1729843840170,-302.5509068,0.00012978,2]
[340795777,1729843840180,-153.0,0.00012978,2]
[340795778,1729843840189,-153.0,0.00012978,2]
[340795779,1729843840199,-219.9009854,0.00013,2]
[340795780,1729843840208,-153.0,0.00013,2]
[340795781,1729843840219,-5083.38153718,0.00013009,2]
[340795782,1729843840229,-218.33384774,0.00013009,2]
[340795783,1729843840240,-420.0,0.00013109,2]
[340795784,1729843840250,-420.0,0.00013135,2]
[340795785,1729843840261,-216.0,0.0001318,2]
[340795786,1729843840274,-153.0,0.00013252,2]
[340795787,1729843840284,-153.5798143,0.00013252,2]
[340795788,1729843840294,-150.052,0.00013582,2]
[340795789,1729843840303,-528.0,0.00013582,2]
[340795790,1729843840313,-1055.20364724,0.00013582,2]
[340795805,1729843842856,-1341.79635276,0.00013582,2]
[340795806,1729843842866,-1151.0,0.00013582,2]
[340795807,1729843842876,-161.98837367,0.00013589,2]
[340795808,1729843842885,-500.0,0.00013673,2]
[340795809,1729843842895,-234.812,0.00013688,2]
[340795810,1729843843137,-12577.521731,0.00013688,2]
[340795811,1729843843147,-152929.02764762,0.00013688,2]
[340795891,1729845038244,-300.0,0.00011998,2]
[340795893,1729845038255,-300.0,0.00011998,2]
[340795895,1729845038264,-3000.0,0.00012118,2]
[340795897,1729845038274,-185.378565,0.0001257,2]
[340795899,1729845038283,-185.378565,0.00012602,2]
[340795901,1729845038293,-185.378565,0.00012633,2]
[340795903,1729845038302,-420.0,0.00013172,2]
[340795905,1729845038312,-420.0,0.00013198,2]
[340795907,1729845038322,-154.115,0.000133,2]
[340795909,1729845038331,-4911.73706884,0.00013334,2]
[340795911,1729845038340,-154.974825,0.00013434,2]
[340795913,1729845038349,-211.080296,0.00013434,2]
[340795915,1729845038358,-394.0,0.0001346,2]
[340795917,1729845038368,-528.0,0.00013581,2]
[340795919,1729845038377,-1151.0,0.00013581,2]
[340795921,1729845038388,-2397.0,0.00013581,2]
[340795923,1729845038397,-505.6103065,0.00013673,2]
[340795925,1729845038406,-500.0,0.00013673,2]
[340795927,1729845038416,-500.0,0.00013673,2]
[340795929,1729845038426,-500.0,0.00013673,2]
[340795931,1729845038435,-500.0,0.00013673,2]
[340795933,1729845038445,-641.2141353,0.00013673,2]
[340795935,1729845038455,-795.48613566,0.00013675,2]
[340795937,1729845038464,-218.596,0.00013679,2]
[340795939,1729845038473,-105020.206553,0.00013688,2]
[340795941,1729845038482,-134920.8439847,0.00013688,2]
[340795943,1729845038494,-439.78132206,0.00013688,2]
[340795956,1729845038599,-35360.03111545,0.00013688,2]
[340796006,1729845040206,-13484.16672892,0.00012286,2]
[340796007,1729845040218,-4234.40966,0.00012286,2]
[340796058,1729845045930,-6876.28943384,0.00012286,2]
[340796059,1729845045943,-305.13417724,0.00012286,2]
[340796060,1729845045953,-421.97352478,0.00013673,2]
[340796067,1729845130913,172.29,0.00010959,2]
[340796068,1729845141702,861.5,0.00010959,2]
[340796144,1729846232121,-300.0,0.00011777,2]
[340796146,1729846232131,-300.0,0.00011777,2]
[340796148,1729846232140,-94.83576485,0.00011778,2]
[340796150,1729846232159,-3870.59615194,0.00011778,2]
[340796203,1729846238079,446.0,0.00022,60]
[340796221,1729846238604,-8272.70966922,0.00011778,2]
[340796230,1729846240449,-638.36546201,0.00011778,2]
[340796242,1729846243304,-10142.96893778,0.00011778,2]
[340796243,1729846243314,-159.771278,0.00012146,2]
[340796244,1729846243324,-159.771278,0.00012209,2]
[340796245,1729846243334,-531.1536918,0.00012221,2]
[340796246,1729846243344,-159.771278,0.00012273,2]
[340796247,1729846243353,-159.771278,0.00012336,2]
[340796248,1729846243362,-159.771278,0.00012399,2]
[340796249,1729846243372,-159.771278,0.00012463,2]
[340796250,1729846243382,-159.771278,0.00012526,2]
[340796251,1729846243391,-159.771278,0.00012589,2]
[340796252,1729846243401,-159.771278,0.00012652,2]
[340796253,1729846243411,-159.771278,0.00012716,2]
[340796254,1729846243420,-159.771278,0.00012779,2]
[340796255,1729846243430,-420.0,0.00012932,2]
[340796256,1729846243440,-420.0,0.00012955,2]
[340796257,1729846243449,-396.773745,0.00013434,2]
[340796258,1729846243459,-167.228338,0.00013434,2]
[340796259,1729846243468,-237.539329,0.00013434,2]
[340796260,1729846243478,-333.60721274,0.00013502,2]
[340796261,1729846243488,-4549.79531328,0.00013502,2]
[340796262,1729846243497,-528.0,0.00013568,2]
[340796263,1729846243507,-2397.0,0.00013568,2]
[340796264,1729846243516,-1151.0,0.00013568,2]
[340796265,1729846243526,-188.543,0.00013568,2]
[340796266,1729846243536,-396.773745,0.00013602,2]
[340796267,1729846243545,-237.539329,0.00013602,2]
[340796268,1729846243554,-500.0,0.00013673,2]
[340796269,1729846243565,-195.03201977,0.00013688,2]
[340796270,1729846243575,-174.877,0.00013688,2]
[340796271,1729846243585,-52114.9588028,0.00013688,2]
[340796272,1729846243594,-28609.23898768,0.00013688,2]
[340796273,1729846243608,-6766.2,0.00013688,2]
[340796274,1729846243625,-516.84,0.00013688,2]
[340796275,1729846243637,-804.09197599,0.00013688,2]
[340796297,1729846246186,-3149.87798774,0.00013688,2]
[340796298,1729846246243,-14905.88522936,0.00013688,2]
[340796299,1729846294491,791.56,0.00010959,2]
[340796300,1729846315546,411.31,0.00010959,2]
[340796301,1729846326147,155.8,0.00010959,2]
[340796302,1729846336705,779.01,0.00010959,2]
[340796310,1729846709100,3005.40349544,0.00016,5]
[340796317,1729846895349,693.0,0.00016,5]
[340796413,1729847438564,-300.0,0.00011309,2]
[340796414,1729847438578,-300.0,0.00011309,2]
[340796416,1729847438588,-13647.3014306,0.0001131,2]
[340796418,1729847438599,-2370.7849648,0.00011559,2]
[340796420,1729847438609,-250.0,0.0001157,2]
[340796422,1729847438619,-806.772094,0.00011577,2]
[340796424,1729847438629,-194.03283152,0.00011677,2]
[340796425,1729847438638,-164.633002,0.00011892,2]
[340796427,1729847438650,-164.633002,0.0001193,2]
[340796429,1729847438661,-164.633002,0.00011969,2]
[340796431,1729847438671,-164.633002,0.00012008,2]
[340796433,1729847438680,-164.633002,0.00012047,2]
[340796435,1729847438690,-164.633002,0.00012085,2]
[340796437,1729847438700,-164.633002,0.00012124,2]
[340796438,1729847438709,-164.633002,0.00012163,2]
[340796440,1729847438718,-164.633002,0.00012202,2]
[340796442,1729847438728,-164.633002,0.0001224,2]
[340796444,1729847438739,-164.633002,0.00012279,2]
[340796446,1729847438748,-164.633002,0.00012318,2]
[340796447,1729847438757,-164.633002,0.00012357,2]
[340796449,1729847438767,-164.633002,0.00012395,2]
[340796451,1729847438776,-420.0,0.00012423,2]
[340796453,1729847438786,-164.633002,0.00012434,2]
[340796455,1729847438795,-420.0,0.00012439,2]
[340796457,1729847438805,-164.633002,0.00012473,2]
[340796458,1729847438815,-164.633002,0.00012512,2]
[340796460,1729847438825,-170.944201,0.00012693,2]
[340796462,1729847438835,-170.944201,0.00012756,2]
[340796464,1729847438844,-308.55218266,0.00013205,2]
[340796466,1729847438853,-8891.17465365,0.00013205,2]
[340796467,1729847438863,-4497.25892214,0.00013264,2]
[340796469,1729847438872,-154.098,0.000133,2]
[340796471,1729847438882,-158.266195,0.00013434,2]
[340796473,1729847438891,-528.0,0.00013568,2]
[340796475,1729847438902,-1151.0,0.00013568,2]
[340796476,1729847438913,-2397.0,0.00013568,2]
[340796478,1729847438923,-1114.65251888,0.00013578,2]
[340796480,1729847438932,-1114.65251887,0.00013581,2]
[340796482,1729847438943,-1114.65251887,0.00013583,2]
[340796483,1729847438953,-1114.65251887,0.00013586,2]
[340796485,1729847438963,-1114.65251887,0.00013588,2]
[340796487,1729847438976,-2160.77293163,0.00013588,2]
[340796489,1729847438988,-3218.30441574,0.00013588,2]
[340796490,1729847439000,-6347.53554938,0.00013588,2]
[340796492,1729847439010,-1000.0,0.00013588,2]
[340796493,1729847439019,-587.0,0.00013647,2]
[340796495,1729847439029,-3728.57451045,0.00013668,2]
[340796496,1729847439039,-502.09984071,0.00013673,2]
[340796497,1729847439049,-500.0,0.00013673,2]
[340796498,1729847439060,-500.0,0.00013673,2]
[340796499,1729847439069,-501.09038603,0.00013673,2]
[340796500,1729847439080,-578.02647522,0.00013673,2]
[340796501,1729847439090,-172.868,0.00013673,2]
[340796502,1729847439099,-3728.57451045,0.00013678,2]
[340796503,1729847439109,-11185.7235314,0.00013678,2]
[340796504,1729847439119,-587.0,0.00013683,2]
[340796505,1729847439129,-1027.70798752,0.00013687,2]
[340796506,1729847439139,-151.0,0.00013688,2]
[340796507,1729847439149,-151.0,0.00013688,2]
[340796508,1729847439161,-151.0,0.00013688,2]
[340796509,1729847439171,-151.0,0.00013688,2]
[340796510,1729847439180,-151.0,0.00013688,2]
[340796511,1729847439190,-151.0,0.00013688,2]
[340796512,1729847439200,-151.0,0.00013688,2]
[340796513,1729847439210,-151.0,0.00013688,2]
[340796514,1729847439221,-151.0,0.00013688,2]
[340796515,1729847439231,-151.0,0.00013688,2]
[340796516,1729847439241,-151.0,0.00013688,2]
[340796517,1729847439251,-165.324165,0.00013688,2]
[340796518,1729847439261,-165.324165,0.00013688,2]
[340796519,1729847439270,-151.0,0.00013688,2]
[340796520,1729847439280,-155.235886,0.00013688,2]
[340796521,1729847439289,-151.0,0.00013688,2]
[340796522,1729847439299,-151.0,0.00013688,2]
[340796523,1729847439308,-172.159359,0.00013688,2]
[340796524,1729847439317,-172.159359,0.00013688,2]
[340796525,1729847439327,-448.011408,0.00013688,2]
[340796526,1729847439337,-448.011408,0.00013688,2]
[340796527,1729847439349,-267.925485,0.00013688,2]
[340796528,1729847439359,-267.925485,0.00013688,2]
[340796529,1729847439369,-301.00986,0.00013688,2]
[340796530,1729847439378,-301.00986,0.00013688,2]
[340796531,1729847439387,-151.0,0.00013688,2]
[340796532,1729847439398,-151.0,0.00013688,2]
[340796533,1729847439409,-301.00986,0.00013688,2]
[340796534,1729847439418,-301.00986,0.00013688,2]
[340796535,1729847439427,-418.762068,0.00013688,2]